[Event "Early-Titled-Tuesday-Blitz-December-26-2023"]
[Site "Chess.com"]
[Date "2023.12.26"]
[Round "8"]
[White "Herzog2012"]
[Black "Ali_rastbod"]
[Result "0-1"]
[WhiteElo "2552"]
[BlackElo "2726"]
[TimeControl "180+1"]
[EndTime "9:29:55 PST"]
[Termination "Ali_rastbod won on time"]

1. e4 {[%clk 0:03:00.9]} 1... d6 {[%clk 0:02:58.2]} 2. d4 {[%clk 0:02:59.5]}
2... Nf6 {[%clk 0:02:58.3]} 3. Nc3 {[%clk 0:02:58.1]} 3... g6 {[%clk 0:02:58.9]}
4. g3 {[%clk 0:02:54.2]} 4... Bg7 {[%clk 0:02:59.1]} 5. Bg2 {[%clk 0:02:54.3]}
5... O-O {[%clk 0:02:59.4]} 6. Nge2 {[%clk 0:02:54.9]} 6... e5 {[%clk
0:02:55.3]} 7. h3 {[%clk 0:02:55]} 7... c6 {[%clk 0:02:49.7]} 8. O-O {[%clk
0:02:50]} 8... b5 {[%clk 0:02:49.6]} 9. a3 {[%clk 0:02:35.3]} 9... a6 {[%clk
0:02:44.6]} 10. Be3 {[%clk 0:02:34.1]} 10... Nbd7 {[%clk 0:02:31.8]} 11. g4
{[%clk 0:02:32.6]} 11... Bb7 {[%clk 0:02:26.8]} 12. Ng3 {[%clk 0:02:31.1]} 12...
exd4 {[%clk 0:02:20.7]} 13. Bxd4 {[%clk 0:02:26.5]} 13... c5 {[%clk 0:02:07.9]}
14. Be3 {[%clk 0:02:05.6]} 14... Ne5 {[%clk 0:02:07.5]} 15. g5 {[%clk 0:01:57]}
15... Nfd7 {[%clk 0:01:57.9]} 16. Bc1 {[%clk 0:01:28.7]} 16... Re8 {[%clk
0:01:53.4]} 17. Qxd6 {[%clk 0:01:15.9]} 17... Nc4 {[%clk 0:01:49.6]} 18. Qd3
{[%clk 0:01:12.2]} 18... Nde5 {[%clk 0:01:45.1]} 19. Qxd8 {[%clk 0:01:08.4]}
19... Raxd8 {[%clk 0:01:46]} 20. b3 {[%clk 0:00:48.2]} 20... Nd2 {[%clk
0:01:38.3]} 21. Bxd2 {[%clk 0:00:39.7]} 21... Rxd2 {[%clk 0:01:39.2]} 22. Rac1
{[%clk 0:00:34.7]} 22... Nf3+ {[%clk 0:01:32.7]} 23. Bxf3 {[%clk 0:00:34.2]}
23... Bxc3 {[%clk 0:01:33.6]} 24. Rfd1 {[%clk 0:00:31]} 24... Red8 {[%clk
0:01:33.5]} 25. Rxd2 {[%clk 0:00:19.6]} 25... Rxd2 {[%clk 0:01:34.4]} 26. Nf1
{[%clk 0:00:12]} 26... Rd4 {[%clk 0:01:24.4]} 27. Rb1 {[%clk 0:00:05.3]} 27...
Rxe4 {[%clk 0:01:21.7]} 28. Bxe4 {[%clk 0:00:06.1]} 28... Bxe4 {[%clk
0:01:22.3]} 29. Ne3 {[%clk 0:00:04.3]} 29... Kg7 {[%clk 0:01:22.8]} 30. Rd1
{[%clk 0:00:03.9]} 30... Bd4 {[%clk 0:01:22.7]} 31. a4 {[%clk 0:00:03.9]} 31...
b4 {[%clk 0:01:09.2]} 32. Rd2 {[%clk 0:00:02.5]} 32... h6 {[%clk 0:01:02.7]} 33.
h4 {[%clk 0:00:02.4]} 33... hxg5 {[%clk 0:01:02.3]} 34. hxg5 {[%clk 0:00:03.2]}
34... Be5 {[%clk 0:01:03]} 35. Kf1 {[%clk 0:00:03.2]} 35... Bf4 {[%clk
0:01:03.3]} 36. Ke2 {[%clk 0:00:03.2]} 36... Bxg5 {[%clk 0:01:03.8]} 37. Rd7
{[%clk 0:00:03.2]} 37... Bxe3 {[%clk 0:01:01.7]} 38. Kxe3 {[%clk 0:00:02.8]}
38... Bxc2 {[%clk 0:01:02.4]} 39. Rc7 {[%clk 0:00:03.2]} 39... Bxb3 {[%clk
0:01:03]} 40. Rxc5 {[%clk 0:00:03.6]} 40... Bxa4 {[%clk 0:01:03.6]} 41. Rc4
{[%clk 0:00:03.1]} 41... a5 {[%clk 0:00:59.4]} 42. Rc5 {[%clk 0:00:03.6]} 42...
b3 {[%clk 0:00:56]} 43. Rc7 {[%clk 0:00:03.7]} 43... Bb5 {[%clk 0:00:48.9]} 44.
Rb7 {[%clk 0:00:03.8]} 44... Bc4 {[%clk 0:00:49.6]} 45. Kd4 {[%clk 0:00:04.2]}
45... Be6 {[%clk 0:00:48]} 46. Kc3 {[%clk 0:00:04]} 46... a4 {[%clk 0:00:47.9]}
47. Ra7 {[%clk 0:00:03.9]} 47... Kf6 {[%clk 0:00:42.6]} 48. Rxa4 {[%clk
0:00:04.1]} 48... Ke5 {[%clk 0:00:43.3]} 49. Rh4 {[%clk 0:00:03.7]} 49... g5
{[%clk 0:00:43.3]} 50. Rd4 {[%clk 0:00:03.8]} 50... Bf5 {[%clk 0:00:40.1]} 51.
Rb4 {[%clk 0:00:03]} 51... Bc2 {[%clk 0:00:40.1]} 52. Kd2 {[%clk 0:00:02.8]}
52... f5 {[%clk 0:00:38.7]} 53. Rb5+ {[%clk 0:00:01.8]} 53... Kf4 {[%clk
0:00:38.9]} 54. Ke2 {[%clk 0:00:02.2]} 54... Kg4 {[%clk 0:00:35.9]} 55. Rb4+
{[%clk 0:00:02.7]} 55... f4 {[%clk 0:00:36.3]} 56. Rb5 {[%clk 0:00:02.3]} 56...
Kh4 {[%clk 0:00:33.8]} 57. f3 {[%clk 0:00:02.6]} 57... g4 {[%clk 0:00:28.8]} 58.
fxg4 {[%clk 0:00:03.5]} 58... Kg3 {[%clk 0:00:29.5]} 59. g5 {[%clk 0:00:02.6]}
59... f3+ {[%clk 0:00:30.1]} 60. Ke3 {[%clk 0:00:01.9]} 60... f2 {[%clk
0:00:30]} 0-1

[Event "Early-Titled-Tuesday-Blitz-December-26-2023"]
[Site "Chess.com"]
[Date "2023.12.26"]
[Round "8"]
[White "vugarrasulov"]
[Black "Jospem"]
[Result "1/2-1/2"]
[WhiteElo "2941"]
[BlackElo "3072"]
[TimeControl "180+1"]
[EndTime "9:29:57 PST"]
[Termination "Game drawn by repetition"]

1. e4 {[%clk 0:03:00.9]} 1... c5 {[%clk 0:02:57.4]} 2. Nf3 {[%clk 0:03:00.3]}
2... d6 {[%clk 0:02:58.2]} 3. Bb5+ {[%clk 0:02:57.7]} 3... Nd7 {[%clk
0:02:57.5]} 4. O-O {[%clk 0:02:57.4]} 4... Nf6 {[%clk 0:02:56.2]} 5. Re1 {[%clk
0:02:57.1]} 5... e6 {[%clk 0:02:56]} 6. c3 {[%clk 0:02:56.4]} 6... a6 {[%clk
0:02:56.6]} 7. Bf1 {[%clk 0:02:54.2]} 7... b5 {[%clk 0:02:54.9]} 8. a4 {[%clk
0:02:51.6]} 8... b4 {[%clk 0:02:45.8]} 9. d4 {[%clk 0:02:51.8]} 9... Bb7 {[%clk
0:02:45.3]} 10. d5 {[%clk 0:02:49.3]} 10... exd5 {[%clk 0:02:35.5]} 11. exd5+
{[%clk 0:02:47.8]} 11... Be7 {[%clk 0:02:36.1]} 12. c4 {[%clk 0:02:45.1]} 12...
O-O {[%clk 0:02:35.6]} 13. h3 {[%clk 0:02:42.8]} 13... Re8 {[%clk 0:02:35.8]}
14. Bf4 {[%clk 0:02:42.8]} 14... Bf8 {[%clk 0:02:32.3]} 15. Nbd2 {[%clk
0:02:42.3]} 15... Rxe1 {[%clk 0:02:31.5]} 16. Qxe1 {[%clk 0:02:43.2]} 16... a5
{[%clk 0:02:29.1]} 17. Qe3 {[%clk 0:02:35.9]} 17... Qb6 {[%clk 0:02:16.7]} 18.
Re1 {[%clk 0:02:33.4]} 18... Re8 {[%clk 0:02:16.8]} 19. Qd3 {[%clk 0:02:33.5]}
19... Rxe1 {[%clk 0:02:15.7]} 20. Nxe1 {[%clk 0:02:34.4]} 20... Qd8 {[%clk
0:02:14.6]} 21. Nef3 {[%clk 0:02:30.2]} 21... Nb6 {[%clk 0:02:12.2]} 22. b3
{[%clk 0:02:25.1]} 22... Bc8 {[%clk 0:02:01.9]} 23. Qe3 {[%clk 0:02:24]} 23...
Bf5 {[%clk 0:01:44.8]} 24. Bd3 {[%clk 0:02:20.1]} 24... Nbxd5 {[%clk 0:01:33.4]}
25. cxd5 {[%clk 0:02:19.8]} 25... Nxd5 {[%clk 0:01:34.3]} 26. Bg5 {[%clk
0:02:10.5]} 26... Qc7 {[%clk 0:01:10.4]} 27. Qe2 {[%clk 0:02:05.6]} 27... Nc3
{[%clk 0:01:10.8]} 28. Qf1 {[%clk 0:02:05.7]} 28... Be6 {[%clk 0:01:11.3]} 29.
Bf4 {[%clk 0:01:59.2]} 29... h6 {[%clk 0:01:10.9]} 30. Bc4 {[%clk 0:01:54.1]}
30... Qd7 {[%clk 0:01:11.4]} 31. Qd3 {[%clk 0:01:51.1]} 31... d5 {[%clk
0:00:58.9]} 32. Bb5 {[%clk 0:01:46.7]} 32... Qc8 {[%clk 0:00:58.9]} 33. Ne5
{[%clk 0:01:42.9]} 33... Bf5 {[%clk 0:00:49.3]} 34. Qf1 {[%clk 0:01:36.4]} 34...
Qe6 {[%clk 0:00:42.1]} 35. Bd7 {[%clk 0:01:35.4]} 35... Qf6 {[%clk 0:00:42.3]}
36. Bg3 {[%clk 0:01:29.8]} 36... Bxd7 {[%clk 0:00:25.9]} 37. Nxd7 {[%clk
0:01:29.5]} 37... Qe6 {[%clk 0:00:26.8]} 38. Nxf8 {[%clk 0:01:27.2]} 38... Kxf8
{[%clk 0:00:27.7]} 39. Kh2 {[%clk 0:01:23.8]} 39... Kg8 {[%clk 0:00:27.9]} 40.
Nf3 {[%clk 0:01:20.2]} 40... c4 {[%clk 0:00:25.6]} 41. Nd2 {[%clk 0:01:11.8]}
41... Ne2 {[%clk 0:00:23.9]} 42. Qb1 {[%clk 0:00:48.1]} 42... c3 {[%clk
0:00:20.1]} 43. Nf3 {[%clk 0:00:48.8]} 43... Qe4 {[%clk 0:00:16.4]} 44. Qxe4
{[%clk 0:00:47.4]} 44... dxe4 {[%clk 0:00:17.3]} 45. Ne1 {[%clk 0:00:48.2]}
45... Nd4 {[%clk 0:00:17.1]} 46. Bc7 {[%clk 0:00:41.9]} 46... Nxb3 {[%clk
0:00:17.5]} 47. Kg3 {[%clk 0:00:42.6]} 47... Nc5 {[%clk 0:00:16.6]} 48. Bxa5
{[%clk 0:00:41.2]} 48... Nd3 {[%clk 0:00:15.7]} 49. Bxb4 {[%clk 0:00:30.8]}
49... Nxb4 {[%clk 0:00:16.6]} 50. a5 {[%clk 0:00:31.4]} 50... g5 {[%clk
0:00:16.7]} 51. Kg4 {[%clk 0:00:26.6]} 51... Kf8 {[%clk 0:00:14.8]} 52. Kf5
{[%clk 0:00:26.9]} 52... c2 {[%clk 0:00:08.8]} 53. Nxc2 {[%clk 0:00:25.9]} 53...
Nxc2 {[%clk 0:00:09.7]} 54. a6 {[%clk 0:00:26]} 54... Nd4+ {[%clk 0:00:10]} 55.
Kxe4 {[%clk 0:00:26.7]} 55... Nb5 {[%clk 0:00:10.3]} 56. Kd3 {[%clk 0:00:23.1]}
56... Ke7 {[%clk 0:00:08.3]} 57. Kc4 {[%clk 0:00:23.7]} 57... Nc7 {[%clk
0:00:07.6]} 58. a7 {[%clk 0:00:23.4]} 58... Kd6 {[%clk 0:00:08.4]} 59. Kd3
{[%clk 0:00:20.9]} 59... Kd5 {[%clk 0:00:09]} 60. Ke3 {[%clk 0:00:21]} 60... Ke5
{[%clk 0:00:09.5]} 61. Kd3 {[%clk 0:00:19.7]} 61... f5 {[%clk 0:00:07.4]} 62.
Kc4 {[%clk 0:00:19.9]} 62... Kd6 {[%clk 0:00:07.7]} 63. Kd3 {[%clk 0:00:18.1]}
63... Kd5 {[%clk 0:00:07.9]} 64. Ke3 {[%clk 0:00:18.2]} 64... Na8 {[%clk
0:00:08.1]} 65. Kd3 {[%clk 0:00:18.4]} 65... Nb6 {[%clk 0:00:08.6]} 66. Ke3
{[%clk 0:00:18.3]} 66... Ke5 {[%clk 0:00:08.8]} 67. Kd3 {[%clk 0:00:17]} 67...
Kd5 {[%clk 0:00:09.2]} 68. Ke3 {[%clk 0:00:17.3]} 68... Ke5 {[%clk 0:00:09.6]}
69. Kd3 {[%clk 0:00:17.7]} 69... Kd5 {[%clk 0:00:09.9]} 1/2-1/2

[Event "Early-Titled-Tuesday-Blitz-December-26-2023"]
[Site "Chess.com"]
[Date "2023.12.26"]
[Round "8"]
[White "Alexei_Gubajdullin"]
[Black "whitemirrorninja"]
[Result "1/2-1/2"]
[WhiteElo "2655"]
[BlackElo "2545"]
[TimeControl "180+1"]
[EndTime "9:30:06 PST"]
[Termination "Game drawn - insufficient material"]

1. d4 {[%clk 0:03:00.8]} 1... g6 {[%clk 0:02:58.8]} 2. Nf3 {[%clk 0:03:00.8]}
2... f5 {[%clk 0:02:58.3]} 3. Bf4 {[%clk 0:03:01.3]} 3... Nf6 {[%clk 0:02:58.1]}
4. e3 {[%clk 0:03:01.5]} 4... Bg7 {[%clk 0:02:58.4]} 5. Be2 {[%clk 0:03:01.9]}
5... b6 {[%clk 0:02:58.8]} 6. O-O {[%clk 0:03:02.1]} 6... Bb7 {[%clk 0:02:59.4]}
7. h3 {[%clk 0:03:02.5]} 7... O-O {[%clk 0:02:59.7]} 8. a4 {[%clk 0:03:02.8]}
8... a5 {[%clk 0:02:52.2]} 9. Nc3 {[%clk 0:03:02.2]} 9... e6 {[%clk 0:02:50.8]}
10. Nd2 {[%clk 0:03:00.4]} 10... Nc6 {[%clk 0:02:34.7]} 11. Bf3 {[%clk
0:02:59.6]} 11... h6 {[%clk 0:02:27.3]} 12. Nb5 {[%clk 0:02:57.1]} 12... d6
{[%clk 0:02:25.7]} 13. c3 {[%clk 0:02:54.5]} 13... g5 {[%clk 0:02:11.7]} 14. Bh2
{[%clk 0:02:53.2]} 14... Rf7 {[%clk 0:01:55.6]} 15. Qb3 {[%clk 0:02:49.4]} 15...
Qe8 {[%clk 0:01:51.8]} 16. Bxd6 {[%clk 0:02:45.9]} 16... cxd6 {[%clk 0:01:50.2]}
17. Nxd6 {[%clk 0:02:45.6]} 17... Qd7 {[%clk 0:01:46.9]} 18. Nxf7 {[%clk
0:02:38.3]} 18... Qxf7 {[%clk 0:01:46.9]} 19. Qxb6 {[%clk 0:02:37.8]} 19... Nd5
{[%clk 0:01:24.9]} 20. Qb3 {[%clk 0:02:33.2]} 20... Rb8 {[%clk 0:01:21.2]} 21.
Qc2 {[%clk 0:02:25.9]} 21... h5 {[%clk 0:01:17.8]} 22. e4 {[%clk 0:02:25.7]}
22... Nf4 {[%clk 0:01:09.9]} 23. exf5 {[%clk 0:02:23.2]} 23... exf5 {[%clk
0:01:08.8]} 24. Qb3 {[%clk 0:02:02.7]} 24... Qxb3 {[%clk 0:00:37.5]} 25. Nxb3
{[%clk 0:02:02.3]} 25... g4 {[%clk 0:00:36.8]} 26. hxg4 {[%clk 0:02:01.2]} 26...
hxg4 {[%clk 0:00:37.7]} 27. Bd1 {[%clk 0:01:59.5]} 27... Ne7 {[%clk 0:00:26.5]}
28. f3 {[%clk 0:01:56.5]} 28... g3 {[%clk 0:00:22.6]} 29. Re1 {[%clk 0:01:54.4]}
29... Kf7 {[%clk 0:00:19.4]} 30. Nd2 {[%clk 0:01:41.7]} 30... Bh6 {[%clk
0:00:16.2]} 31. Bb3+ {[%clk 0:01:36.2]} 31... Bd5 {[%clk 0:00:15.3]} 32. Bxd5+
{[%clk 0:01:25.9]} 32... Nexd5 {[%clk 0:00:16.2]} 33. Nc4 {[%clk 0:01:16.5]}
33... Nd3 {[%clk 0:00:15.7]} 34. Re2 {[%clk 0:01:14.7]} 34... N5f4 {[%clk
0:00:15.3]} 35. Rc2 {[%clk 0:01:14.3]} 35... Re8 {[%clk 0:00:12.7]} 36. Kf1
{[%clk 0:01:10]} 36... Nd5 {[%clk 0:00:09.8]} 37. Rd1 {[%clk 0:01:07.1]} 37...
Ne3+ {[%clk 0:00:06.7]} 38. Nxe3 {[%clk 0:01:06.3]} 38... Rxe3 {[%clk
0:00:07.6]} 39. Re2 {[%clk 0:01:05.7]} 39... Nxb2 {[%clk 0:00:04.6]} 40. Rxe3
{[%clk 0:01:02.9]} 40... Bxe3 {[%clk 0:00:05.5]} 41. Ra1 {[%clk 0:00:58]} 41...
f4 {[%clk 0:00:04.2]} 42. Ke2 {[%clk 0:00:57.6]} 42... Nc4 {[%clk 0:00:04.9]}
43. Kd3 {[%clk 0:00:56.8]} 43... Nd2 {[%clk 0:00:05.3]} 44. c4 {[%clk 0:00:56]}
44... Nxf3 {[%clk 0:00:05.5]} 45. gxf3 {[%clk 0:00:54.8]} 45... g2 {[%clk
0:00:06.4]} 46. Ke4 {[%clk 0:00:46.5]} 46... g1=Q {[%clk 0:00:04.9]} 47. Rxg1
{[%clk 0:00:43.9]} 47... Bxg1 {[%clk 0:00:05.8]} 48. Kxf4 {[%clk 0:00:43.8]}
48... Bxd4 {[%clk 0:00:05.4]} 49. Ke4 {[%clk 0:00:43.8]} 49... Bf2 {[%clk
0:00:04.4]} 50. Kd5 {[%clk 0:00:43.7]} 50... Ke7 {[%clk 0:00:04.1]} 51. Kc6
{[%clk 0:00:42.4]} 51... Be1 {[%clk 0:00:03.1]} 52. c5 {[%clk 0:00:39.5]} 52...
Kd8 {[%clk 0:00:02.7]} 53. f4 {[%clk 0:00:38.8]} 53... Kc8 {[%clk 0:00:03]} 54.
f5 {[%clk 0:00:38.5]} 54... Bc3 {[%clk 0:00:03.7]} 55. Kd6 {[%clk 0:00:36.3]}
55... Bb2 {[%clk 0:00:02.8]} 56. c6 {[%clk 0:00:35.6]} 56... Bc3 {[%clk
0:00:02.6]} 57. c7 {[%clk 0:00:33.5]} 57... Bb2 {[%clk 0:00:01.5]} 58. Kc6
{[%clk 0:00:33.6]} 58... Bc3 {[%clk 0:00:02]} 59. Kb6 {[%clk 0:00:33.1]} 59...
Be5 {[%clk 0:00:02.6]} 60. Kxa5 {[%clk 0:00:31.3]} 60... Bxc7+ {[%clk
0:00:03.2]} 61. Kb5 {[%clk 0:00:29.6]} 61... Be5 {[%clk 0:00:04.1]} 62. Kc6
{[%clk 0:00:29.5]} 62... Kb8 {[%clk 0:00:04.5]} 63. Kb6 {[%clk 0:00:29.1]} 63...
Ba1 {[%clk 0:00:05]} 64. Ka6 {[%clk 0:00:27.8]} 64... Ka8 {[%clk 0:00:05.6]} 65.
a5 {[%clk 0:00:27.4]} 65... Bb2 {[%clk 0:00:06.1]} 66. Kb5 {[%clk 0:00:27.5]}
66... Ba1 {[%clk 0:00:05.9]} 67. Kc4 {[%clk 0:00:26.9]} 67... Bb2 {[%clk
0:00:06.2]} 68. Kb3 {[%clk 0:00:27]} 68... Bf6 {[%clk 0:00:07.1]} 69. Kc4 {[%clk
0:00:26.9]} 69... Ka7 {[%clk 0:00:07.6]} 70. Kd5 {[%clk 0:00:27.8]} 70... Bb2
{[%clk 0:00:07.9]} 71. Ke6 {[%clk 0:00:28.7]} 71... Ka6 {[%clk 0:00:08.3]} 72.
f6 {[%clk 0:00:29.5]} 72... Bxf6 {[%clk 0:00:08.4]} 73. Kxf6 {[%clk 0:00:30.4]}
73... Kxa5 {[%clk 0:00:08.9]} 1/2-1/2

[Event "Early-Titled-Tuesday-Blitz-December-26-2023"]
[Site "Chess.com"]
[Date "2023.12.26"]
[Round "8"]
[White "nekotyanof"]
[Black "Kirill_Klukin"]
[Result "0-1"]
[WhiteElo "2636"]
[BlackElo "2827"]
[TimeControl "180+1"]
[EndTime "9:30:20 PST"]
[Termination "Kirill_Klukin won by resignation"]

1. e4 {[%clk 0:03:00.9]} 1... c5 {[%clk 0:02:59.2]} 2. Nf3 {[%clk 0:03:01.4]}
2... Nc6 {[%clk 0:02:59.6]} 3. Bb5 {[%clk 0:03:01.9]} 3... g6 {[%clk 0:02:59]}
4. Bxc6 {[%clk 0:03:01.7]} 4... bxc6 {[%clk 0:02:58.8]} 5. d3 {[%clk 0:03:02.6]}
5... Bg7 {[%clk 0:02:58.4]} 6. O-O {[%clk 0:03:02.7]} 6... d6 {[%clk 0:02:58.8]}
7. Re1 {[%clk 0:03:02.6]} 7... e5 {[%clk 0:02:59]} 8. c3 {[%clk 0:03:01]} 8...
Bg4 {[%clk 0:02:53.3]} 9. d4 {[%clk 0:02:53.2]} 9... exd4 {[%clk 0:02:30.5]} 10.
cxd4 {[%clk 0:02:52.2]} 10... cxd4 {[%clk 0:02:30.8]} 11. Qa4 {[%clk 0:02:28.9]}
11... Ne7 {[%clk 0:01:51.1]} 12. Nxd4 {[%clk 0:02:28.8]} 12... Bd7 {[%clk
0:01:42.3]} 13. Qd1 {[%clk 0:02:27.2]} 13... O-O {[%clk 0:01:41.4]} 14. Nc3
{[%clk 0:02:27.1]} 14... Re8 {[%clk 0:01:40.2]} 15. Bf4 {[%clk 0:02:26.8]} 15...
d5 {[%clk 0:01:35.4]} 16. Nb3 {[%clk 0:02:15.5]} 16... dxe4 {[%clk 0:01:19.4]}
17. Nxe4 {[%clk 0:02:11.5]} 17... Nd5 {[%clk 0:01:18.4]} 18. Qd2 {[%clk
0:02:10.3]} 18... Bf5 {[%clk 0:01:12.2]} 19. Ng3 {[%clk 0:01:55.1]} 19... Rxe1+
{[%clk 0:01:09.3]} 20. Rxe1 {[%clk 0:01:54.5]} 20... Nxf4 {[%clk 0:01:08.9]} 21.
Qxf4 {[%clk 0:01:55.2]} 21... Be6 {[%clk 0:01:06.8]} 22. Nc5 {[%clk 0:01:53.7]}
22... Bd5 {[%clk 0:01:05.6]} 23. b3 {[%clk 0:01:52.8]} 23... Qa5 {[%clk
0:01:03.1]} 24. Qe3 {[%clk 0:01:44.9]} 24... Qxa2 {[%clk 0:00:54.8]} 25. Nge4
{[%clk 0:01:44.7]} 25... Qb2 {[%clk 0:00:49.7]} 26. Nd7 {[%clk 0:01:32.8]} 26...
Qd4 {[%clk 0:00:36.4]} 27. Qxd4 {[%clk 0:01:25.5]} 27... Bxd4 {[%clk 0:00:36.2]}
28. Nef6+ {[%clk 0:01:26.2]} 28... Bxf6 {[%clk 0:00:25.5]} 29. Nxf6+ {[%clk
0:01:26.3]} 29... Kg7 {[%clk 0:00:26.3]} 30. Nxd5 {[%clk 0:01:24.6]} 30... cxd5
{[%clk 0:00:27.2]} 31. Re7 {[%clk 0:01:24.5]} 31... Kf6 {[%clk 0:00:27]} 32. Rb7
{[%clk 0:01:24.5]} 32... Ke6 {[%clk 0:00:22.9]} 33. Kf1 {[%clk 0:01:24.2]} 33...
a5 {[%clk 0:00:21]} 34. Ke2 {[%clk 0:01:21]} 34... a4 {[%clk 0:00:21.2]} 35.
Rb6+ {[%clk 0:01:17.4]} 35... Ke5 {[%clk 0:00:21.1]} 36. bxa4 {[%clk 0:01:18.3]}
36... Rxa4 {[%clk 0:00:21.6]} 37. Rb7 {[%clk 0:01:19.2]} 37... Re4+ {[%clk
0:00:16.3]} 38. Kf3 {[%clk 0:01:19]} 38... Rf4+ {[%clk 0:00:16.6]} 39. Ke3
{[%clk 0:01:19.1]} 39... Rf6 {[%clk 0:00:15.5]} 40. g3 {[%clk 0:01:20]} 40... h5
{[%clk 0:00:14.8]} 41. f4+ {[%clk 0:01:19.8]} 41... Kf5 {[%clk 0:00:11.9]} 42.
Kf3 {[%clk 0:01:20.1]} 42... Ke6 {[%clk 0:00:10.5]} 43. Rb6+ {[%clk 0:01:18.1]}
43... Ke7 {[%clk 0:00:10.8]} 44. Rb7+ {[%clk 0:01:17.5]} 44... Kf8 {[%clk
0:00:11.2]} 45. Ke3 {[%clk 0:01:18.1]} 45... Ra6 {[%clk 0:00:10.3]} 46. Kd4
{[%clk 0:01:05.3]} 46... Ra2 {[%clk 0:00:10.3]} 47. Ke5 {[%clk 0:01:05.2]} 47...
d4 {[%clk 0:00:07.7]} 48. Kxd4 {[%clk 0:00:59.3]} 48... Rxh2 {[%clk 0:00:07.6]}
49. Ke5 {[%clk 0:01:00.2]} 49... Re2+ {[%clk 0:00:06.7]} 50. Kf6 {[%clk
0:01:00.1]} 50... Re6+ {[%clk 0:00:07.2]} 51. Kg5 {[%clk 0:01:00.8]} 51... Kg7
{[%clk 0:00:07]} 52. Rb5 {[%clk 0:01:01.3]} 52... Re3 {[%clk 0:00:05.9]} 53. Kh4
{[%clk 0:01:01.3]} 53... Re1 {[%clk 0:00:04.8]} 54. f5 {[%clk 0:01:01.3]} 54...
Re4+ {[%clk 0:00:04.3]} 55. Kh3 {[%clk 0:01:01.4]} 55... g5 {[%clk 0:00:03.2]}
56. Rb6 {[%clk 0:00:55.8]} 56... Re5 {[%clk 0:00:03.3]} 57. g4 {[%clk
0:00:56.5]} 57... Re3+ {[%clk 0:00:03.5]} 58. Kg2 {[%clk 0:00:57.2]} 58... hxg4
{[%clk 0:00:04]} 59. Rb4 {[%clk 0:00:58.1]} 59... Re5 {[%clk 0:00:03.7]} 60. Kg3
{[%clk 0:00:53.4]} 60... Rxf5 {[%clk 0:00:03.2]} 61. Kxg4 {[%clk 0:00:54.3]}
61... Re5 {[%clk 0:00:03.5]} 62. Rb6 {[%clk 0:00:54.4]} 62... f6 {[%clk
0:00:03.9]} 63. Rb8 {[%clk 0:00:55.3]} 63... Re4+ {[%clk 0:00:03.9]} 64. Kf5
{[%clk 0:00:55.7]} 64... Rf4+ {[%clk 0:00:04.5]} 65. Ke6 {[%clk 0:00:56.4]}
65... g4 {[%clk 0:00:05.2]} 66. Ra8 {[%clk 0:00:55.6]} 66... g3 {[%clk 0:00:03]}
67. Ra3 {[%clk 0:00:35.2]} 67... Rg4 {[%clk 0:00:03.3]} 68. Kf5 {[%clk
0:00:33.8]} 68... g2 {[%clk 0:00:03.1]} 69. Ra7+ {[%clk 0:00:34.7]} 69... Kh6
{[%clk 0:00:03]} 0-1